bitfinex-derivatives/quotes_SOLF0:USTF0_20250409
["timestamp","ask_amount","ask_price","bid_price","bid_amount"]
[1744180594418,0.06197192,105.54,105.52,49.9028]
[1744180595314,0.06197192,105.54,105.52,40.42]
[1744180595914,9.54397192,105.54,105.52,40.42]
[1744180596313,0.06197192,105.54,105.52,40.42]
[1744180598321,0.06197192,105.54,105.52,49.9028]
[1744180598619,0.06197192,105.54,105.52,40.42]
[1744180598917,0.06197192,105.54,105.53,9.4824]
[1744180604323,0.06197192,105.54,105.52,49.9028]
[1744180607618,0.06197192,105.54,105.53,9.4824]
[1744180608618,3.6811,105.58,105.55,9.4799]
[1744180608821,53.7509,105.59,105.55,9.4799]
[1744180609020,44.2738,105.59,105.55,9.4799]
[1744180609217,44.2738,105.59,105.52,40.42]
[1744180609724,44.2738,105.59,105.52,49.9032]
[1744180609925,0.07209177,105.57,105.54,0.06589257]
[1744180610226,9.4802,105.56,105.54,0.06589257]
[1744180611929,0.07209177,105.57,105.54,0.06589257]
[1744180612122,71.33663145,105.56,105.46,40.38]
[1744180612325,9.4846,105.51,105.46,40.38]
[1744180612527,40.38,105.53,105.46,40.38]
[1744180612833,44.1258,105.53,105.46,40.38]
[1744180613323,44.1258,105.53,105.48,0.06933979]
[1744180613515,0.06316091,105.51,105.48,0.06933979]
[1744180613720,9.4852,105.5,105.48,0.06933979]
[1744180614721,9.54806091,105.51,105.48,0.06933979]
[1744180614922,0.06316091,105.51,105.48,0.06933979]
[1744180615631,0.06316091,105.51,105.49,9.4851]
[1744180615832,0.06316091,105.51,105.48,0.06933979]
[1744180616726,0.06316091,105.51,105.5,9.4851]
[1744180619534,44.0317,105.56,105.53,9.4822]
[1744180620134,44.0317,105.56,105.52,9.4828]
[1744180620632,44.0317,105.56,105.49,44.0298]
[1744180620832,9.4817,105.54,105.53,0.0727919]
[1744180621035,0.06658633,105.55,105.53,0.0727919]
[1744180621340,0.06658633,105.55,105.53,9.5547919]
[1744180622741,0.06658633,105.55,105.53,0.0727919]
[1744180623242,0.06658633,105.55,105.54,9.4815]
[1744180623437,43.9998,105.6,105.53,0.0727919]
[1744180623638,43.9998,105.6,105.53,7.5291]
[1744180623834,9.4771,105.59,105.56,9.479]
[1744180624037,43.9998,105.6,105.53,7.5291]
[1744180624741,0.06001578,105.58,105.55,0.0685149]
[1744180625247,9.4793,105.57,105.55,0.0685149]
[1744180625645,0.06001578,105.58,105.55,0.0685149]
[1744180625849,40.36,105.57,105.5,3.7536]
[1744180626347,49.8393,105.57,105.53,9.482]
[1744180626948,9.54850889,105.56,105.54,0.07027166]
[1744180627152,13.09200889,105.56,105.54,0.07027166]
[1744180627752,3.61230889,105.56,105.54,0.07027166]
[1744180629750,3.61230889,105.56,105.54,9.55147166]
[1744180629953,3.61230889,105.56,105.54,0.07027166]
[1744180630152,0.06880889,105.56,105.54,0.07027166]
[1744180630351,0.06880889,105.56,105.54,9.55127166]
[1744180632250,9.54910889,105.56,105.54,0.07027166]
[1744180632551,0.06880889,105.56,105.54,0.07027166]
[1744180633348,0.06880889,105.56,105.54,9.55137166]
[1744180634159,0.06880889,105.56,105.55,9.4806]
[1744180635253,0.06880889,105.56,105.54,9.55127166]
[1744180635649,0.06880889,105.56,105.54,0.07027166]
[1744180635852,0.06880889,105.56,105.54,9.55167166]
[1744180636258,0.06880889,105.56,105.54,0.07027166]
[1744180636858,0.06880889,105.56,105.54,9.55127166]
[1744180639666,0.06880889,105.56,105.54,0.07027166]
[1744180639858,9.54890889,105.56,105.54,0.07027166]
[1744180640462,0.06880889,105.56,105.54,0.07027166]
[1744180641965,0.06880889,105.56,105.54,9.55127166]
[1744180642357,0.06880889,105.56,105.54,0.07027166]
[1744180642554,0.06880889,105.56,105.55,9.4806]
[1744180642963,3.8576,105.59,105.55,40.34]
[1744180643266,3.8576,105.59,105.57,9.4782]
[1744180643459,3.6398,105.6,105.55,40.34]
[1744180643659,3.6281,105.61,105.58,9.4773]
[1744180643859,3.6281,105.61,105.55,40.34]
[1744180644263,0.07103376,105.59,105.58,9.4774]
[1744180644661,0.07103376,105.59,105.57,0.06069568]
[1744180645268,0.07103376,105.59,105.57,9.53909568]
[1744180645568,0.07103376,105.59,105.57,0.06069568]
[1744180645767,0.07103376,105.59,105.58,9.4779]
[1744180646067,0.07103376,105.59,105.57,0.06069568]
[1744180646570,0.07103376,105.59,105.57,9.53909568]
[1744180648159,0.07103376,105.59,105.58,9.4779]
[1744180649370,0.07103376,105.59,105.57,9.53899568]
[1744180651774,9.54813376,105.59,105.57,0.06069568]
[1744180652374,0.07103376,105.59,105.57,0.06069568]
[1744180653375,9.4779,105.58,105.57,0.06069568]
[1744180653673,0.07103376,105.59,105.57,0.06069568]
[1744180656572,0.07103376,105.59,105.57,9.53929568]
[1744180656767,0.07103376,105.59,105.57,0.06069568]
[1744180657673,3.376e-05,105.59,105.58,9.4779]
[1744180657870,3.376e-05,105.59,105.58,49.7979]
[1744180658078,3.376e-05,105.59,105.57,0.06069568]
[1744180658675,3.376e-05,105.59,105.58,9.4779]
[1744180663283,3.376e-05,105.59,105.57,40.38069568]
[1744180664287,3.376e-05,105.59,105.58,9.4779]
[1744180664683,3.376e-05,105.59,105.57,40.38069568]
[1744180664882,3.376e-05,105.59,105.58,9.4779]
[1744180665685,3.376e-05,105.59,105.57,49.85899568]
[1744180666385,3.376e-05,105.59,105.57,40.38069568]
[1744180666583,3.376e-05,105.59,105.57,0.06069568]
[1744180667085,9.47753376,105.59,105.57,0.06069568]
[1744180668092,3.376e-05,105.59,105.57,9.53939568]
[1744180668490,3.376e-05,105.59,105.57,0.06069568]
[1744180668987,3.376e-05,105.59,105.58,9.4779]
[1744180669794,52.45196585,105.66,105.64,9.4725]
[1744180669988,52.45196585,105.66,105.62,40.32]
[1744180670192,52.45196585,105.66,105.63,59.71586441]
[1744180670690,52.45196585,105.67,105.64,9.4719]
[1744180670987,0.07026879,105.66,105.63,40.3807788]
[1744180671383,0.07026879,105.66,105.63,49.8536788]
[1744180671583,0.07026879,105.66,105.63,40.3807788]
[1744180672387,0.07026879,105.66,105.63,49.8537788]
[1744180672892,0.07026879,105.66,105.63,40.3807788]
[1744180673390,9.54136879,105.66,105.63,40.3807788]
[1744180674492,0.07026879,105.66,105.63,40.3807788]
[1744180675486,0.07026879,105.66,105.64,9.472]
[1744180678189,0.07026879,105.66,105.63,49.8537788]
[1744180678994,9.54106879,105.66,105.63,40.3807788]
[1744180679489,9.54106879,105.66,105.63,0.0607788]
[1744180679694,9.4716,105.65,105.63,0.0607788]
[1744180679999,0.07026879,105.66,105.63,0.0607788]
[1744180680189,9.54146879,105.66,105.63,0.0607788]
[1744180681900,9.4716,105.65,105.63,0.0607788]
[1744180683899,9.4725,105.64,105.63,0.0607788]
[1744180684306,59.7261332,105.66,105.58,44.5061]
[1744180684508,9.4729,105.64,105.6,9.476]
[1744180684694,59.7261332,105.66,105.61,40.26]
[1744180684695,40.26,105.66,105.61,40.26]
[1744180685009,40.26,105.66,105.64,9.4723]
[1744180685208,49.356,105.69,105.61,59.65586441]
[1744180685508,0.0709271,105.66,105.64,0.0614238]
[1744180686108,0.0709271,105.66,105.65,9.4716]
[1744180687000,0.0709271,105.66,105.64,9.5337238]
[1744180687208,0.0709271,105.66,105.64,0.0614238]
[1744180687702,59.72679151,105.66,105.61,40.26]
[1744180687909,9.473,105.64,105.6,9.4757]
[1744180688601,9.4738,105.63,105.59,9.4765]
[1744180689002,0.06024387,105.62,105.6,0.06212078]
[1744180689405,0.06024387,105.62,105.6,9.53802078]
[1744180690112,0.06024387,105.62,105.61,9.4752]
[1744180690610,49.356,105.69,105.65,9.4715]
[1744180691008,9.4693,105.68,105.61,68.82896441]
[1744180691211,9.4693,105.68,105.64,9.4716]
[1744180691713,0.06731495,105.67,105.65,0.06254289]
[1744180692312,0.06731495,105.67,105.65,9.53404289]
[1744180692614,0.06731495,105.67,105.65,0.06254289]
[1744180694614,1.495e-05,105.67,105.65,4.65774289]
[1744180694808,1.495e-05,105.67,105.66,9.4707]
[1744180697310,1.495e-05,105.67,105.66,18.4529]
[1744180698114,1.495e-05,105.67,105.66,13.9605]
[1744180700418,9.4649,105.73,105.7,9.4665]
[1744180701720,9.5288278,105.73,105.7,9.53737546]
[1744180701912,0.0639278,105.73,105.7,9.53737546]
[1744180702521,0.0639278,105.73,105.7,0.07087546]
[1744180705023,30.98402427,105.72,105.62,49.6072]
[1744180705217,40.22,105.71,105.62,49.6072]
[1744180705620,4.7132,105.7,105.62,49.6072]
[1744180705920,14.1807,105.7,105.66,9.4702]
[1744180706120,0.07266011,105.67,105.65,40.29044963]
[1744180706424,0.07266011,105.67,105.66,9.4707]
[1744180707624,0.07266011,105.67,105.65,49.76164963]
[1744180708325,0.07266011,105.67,105.66,9.4707]
[1744180709624,0.07266011,105.67,105.65,40.29044963]
[1744180710319,0.07266011,105.67,105.66,9.4707]
[1744180712626,0.07266011,105.67,105.65,49.76164963]
[1744180713126,0.07266011,105.67,105.65,9.54164963]
[1744180714228,0.07266011,105.67,105.65,0.07044963]
[1744180714931,9.4707,105.66,105.65,0.07044963]
[1744180715127,0.07266011,105.67,105.59,40.22]
[1744180715333,4.5621,105.65,105.59,40.22]
[1744180715632,9.4739,105.63,105.59,49.6966]
[1744180715836,44.7821,105.65,105.59,40.22]
[1744180716029,9.4742,105.63,105.59,49.6966]
[1744180716430,0.07106854,105.62,105.6,0.06974028]
[1744180718127,9.4752,105.61,105.6,0.06974028]
[1744180718323,0.07106854,105.62,105.6,0.06974028]
[1744180719541,9.54586854,105.62,105.6,0.06974028]
[1744180719833,0.07106854,105.62,105.6,0.06974028]
[1744180721138,9.54536854,105.62,105.6,0.06974028]
[1744180721633,0.07106854,105.62,105.6,0.06974028]
[1744180722227,40.31106854,105.62,105.6,0.06974028]
[1744180722431,9.4766,105.6,105.56,49.6992]
[1744180722732,40.24,105.62,105.56,49.6992]
[1744180723137,40.24,105.62,105.56,40.22]
[1744180723633,0.06664088,105.6,105.59,9.477]
[1744180724636,0.06664088,105.6,105.58,0.06039134]
[1744180725427,59.64260634,105.59,105.52,53.8933]
[1744180725639,9.4793,105.57,105.53,9.482]
[1744180726643,0.06996513,105.56,105.54,0.068501]
[1744180726937,0.06996513,105.56,105.54,9.549801]
[1744180728938,0.06996513,105.56,105.54,0.068501]
[1744180730144,0.06996513,105.56,105.54,9.550001]
[1744180731042,0.06996513,105.56,105.54,0.068501]
[1744180731944,0.06996513,105.56,105.54,9.549501]
[1744180733442,0.06996513,105.56,105.54,0.068501]
[1744180733642,9.54976513,105.56,105.54,0.068501]
[1744180733838,0.06996513,105.56,105.54,0.068501]
[1744180734031,40.28996513,105.56,105.49,40.22]
[1744180734238,4.4306,105.55,105.49,40.22]
[1744180734737,9.4819,105.54,105.5,9.4845]
[1744180735147,13.9118,105.55,105.51,9.4841]
[1744180735348,0.06461206,105.53,105.51,0.06293998]
[1744180735844,0.06461206,105.53,105.52,9.4832]
[1744180737246,9.199,105.58,105.55,9.4801]
[1744180737838,18.6771,105.58,105.54,9.481]
[1744180738548,0.06952503,105.57,105.55,0.06543487]
[1744180739446,0.06952503,105.57,105.55,9.54583487]
[1744180741047,0.06952503,105.57,105.55,0.06543487]
[1744180741450,0.06952503,105.57,105.55,40.30543487]
[1744180741644,0.06952503,105.57,105.56,9.4797]
[1744180742345,49.7149,105.62,105.58,9.4776]
[1744180743045,9.4753,105.61,105.58,9.4776]
[1744180743456,9.54297837,105.61,105.58,9.54917438]
[1744180744446,0.06767837,105.61,105.58,0.07157438]
[1744180744954,0.06767837,105.61,105.59,9.4765]
[1744180746457,0.06767837,105.61,105.6,9.4761]
[1744180748655,0.06767837,105.61,105.59,40.24]
[1744180749047,0.06767837,105.61,105.58,0.07157438]
[1744180750855,9.54337837,105.61,105.58,0.07157438]
[1744180752555,9.54337837,105.61,105.58,9.54937438]
[1744180753162,9.4763,105.6,105.58,0.07157438]
[1744180753653,9.477,105.59,105.58,0.07157438]
[1744180753853,0.06767837,105.61,105.53,40.22]
[1744180754062,59.6065656,105.62,105.53,40.22]
[1744180754257,9.4778,105.59,105.55,9.4805]
[1744180755161,0.06067758,105.58,105.56,0.06494141]
[1744180756071,9.53907758,105.58,105.56,0.06494141]
[1744180756272,0.06067758,105.58,105.56,0.06494141]
[1744180756771,9.53897758,105.58,105.56,0.06494141]
[1744180757166,0.06067758,105.58,105.56,0.06494141]
[1744180758273,0.06067758,105.58,105.56,9.54464141]
[1744180758470,0.06067758,105.58,105.56,0.06494141]
[1744180758972,0.06067758,105.58,105.57,9.4788]
[1744180768877,7.758e-05,105.58,105.57,9.4788]
[1744180769181,40.18,105.65,105.62,9.474]
[1744180769478,40.18,105.65,105.59,59.5665656]
[1744180770081,49.652,105.65,105.62,9.4738]
[1744180770286,0.06510191,105.63,105.62,9.4738]
[1744180770477,0.06510191,105.63,105.61,0.06590633]
[1744180770677,0.06510191,105.63,105.61,9.54110633]
[1744180770880,0.06510191,105.63,105.61,0.06590633]
[1744180771483,0.06510191,105.63,105.61,9.54070633]
[1744180771877,0.06510191,105.63,105.61,0.06590633]
[1744180772384,0.06510191,105.63,105.62,9.4743]
[1744180774983,0.06510191,105.63,105.61,9.54070633]
[1744180775490,0.06510191,105.63,105.62,9.4743]
[1744180776587,0.06510191,105.63,105.61,9.54060633]
[1744180777087,0.06510191,105.63,105.62,9.4743]
[1744180777288,53.32516812,105.7,105.62,40.18]
[1744180777587,53.32516812,105.7,105.63,19.3865656]
[1744180777789,9.4686,105.69,105.64,9.4718]
[1744180777976,53.32516812,105.7,105.63,19.3865656]
[1744180778180,9.4684,105.69,105.65,9.4715]
[1744180778380,0.06805777,105.68,105.65,9.53949223]
[1744180778901,0.06805777,105.68,105.67,9.4698]
[1744180779589,0.06805777,105.68,105.65,40.24799223]
[1744180780689,0.06805777,105.68,105.67,9.4698]
[1744180782196,71.83853145,105.74,105.69,9.468]
[1744180782396,9.4661,105.72,105.68,40.18]
[1744180782790,19.3865656,105.74,105.68,49.6484]
[1744180783391,0.06696866,105.72,105.7,0.06413312]
[1744180784196,0.06696866,105.72,105.7,9.53043312]
[1744180784893,0.06696866,105.72,105.7,0.06413312]
[1744180785498,9.53266866,105.72,105.7,0.06413312]
[1744180787204,9.4662,105.71,105.7,0.06413312]
[1744180787506,0.06696866,105.72,105.7,0.06413312]
[1744180787698,9.53286866,105.72,105.7,0.06413312]
[1744180787890,0.06696866,105.72,105.7,0.06413312]
[1744180789204,9.53236866,105.72,105.7,0.06413312]
[1744180789607,0.06696866,105.72,105.7,0.06413312]
[1744180790511,9.53266866,105.72,105.7,0.06413312]
[1744180791499,9.4662,105.71,105.7,0.06413312]
[1744180795410,9.4681,105.69,105.65,44.809]
[1744180795809,9.4681,105.69,105.65,54.2801]
[1744180796110,4.4249,105.71,105.64,540.14]
[1744180796309,9.6504,105.7,105.64,540.14]
[1744180796504,9.4703,105.67,105.66,0.06755872]
[1744180797307,9.4723,105.65,105.61,49.5749]
[1744180798110,9.4711,105.66,105.62,9.4743]
[1744180798413,44.7457,105.67,105.62,9.4743]
[1744180798706,0.0620811,105.65,105.63,0.06452605]
[1744180801011,0.0620811,105.65,105.64,9.4725]
[1744180801310,0.0620811,105.65,105.63,0.06452605]
[1744180802408,9.4725,105.64,105.63,0.06452605]
[1744180802805,0.0620811,105.65,105.63,0.06452605]
[1744180803411,0.0620811,105.65,105.55,1.64772727]
[1744180803611,14.2225,105.65,105.57,59.5065656]
[1744180803807,14.2225,105.65,105.58,40.12]
[1744180804310,40.12,105.64,105.58,40.12]
[1744180804712,0.06454065,105.62,105.6,0.06111826]
[1744180804910,9.53934065,105.62,105.6,0.06111826]
[1744180805105,0.06454065,105.62,105.6,0.06111826]
[1744180806519,9.4713,105.66,105.63,9.4731]
[1744180807412,9.4713,105.66,105.62,9.4738]
[1744180807817,9.53937977,105.66,105.63,0.06568723]
[1744180808123,0.06807977,105.66,105.63,0.06568723]
[1744180810322,9.53927977,105.66,105.63,0.06568723]
[1744180810519,0.06807977,105.66,105.63,0.06568723]
[1744180810911,9.53927977,105.66,105.63,9.53898723]
[1744180811218,0.06807977,105.66,105.63,0.06568723]
[1744180812321,9.4721,105.65,105.63,0.06568723]
[1744180814615,9.53927977,105.66,105.63,0.06568723]
[1744180815226,9.4716,105.65,105.63,0.06568723]
[1744180816221,0.06807977,105.66,105.63,0.06568723]
[1744180816222,9.4725,105.64,105.63,0.06568723]
[1744180817617,18.6914,105.65,105.63,0.06568723]
[1744180817917,9.4725,105.64,105.63,0.06568723]
[1744180819127,9.4725,105.64,105.58,40.12]
[1744180819128,9.4765,105.6,105.58,40.12]
[1744180819331,59.5065656,105.64,105.56,9.4673]
[1744180819825,9.4747,105.62,105.58,9.4774]
[1744180820231,59.5065656,105.64,105.58,9.4774]
[1744180820531,0.07239043,105.61,105.59,0.06542014]
[1744180820829,9.54809043,105.61,105.59,0.06542014]
[1744180821226,0.07239043,105.61,105.59,0.06542014]
[1744180821434,9.54819043,105.61,105.59,0.06542014]
[1744180821923,9.4761,105.6,105.59,0.06542014]
[1744180822129,0.07239043,105.61,105.59,0.06542014]
[1744180822434,0.07239043,105.61,105.6,9.4761]
[1744180825221,0.07239043,105.61,105.59,14.31942014]
[1744180825732,0.07239043,105.61,105.6,9.4761]
[1744180826031,19.3865656,105.69,105.6,28.8465656]
[1744180826236,9.4696,105.68,105.64,9.472]
[1744180826419,9.4696,105.68,105.61,49.2419]
[1744180826624,24.1887656,105.69,105.61,49.2419]
[1744180826821,9.4703,105.67,105.64,9.472]
[1744180827031,0.07173501,105.66,105.64,9.53976928]
[1744180827330,0.07173501,105.66,105.64,0.06776928]
[1744180827633,0.07173501,105.66,105.65,9.4716]
[1744180828035,0.07173501,105.66,105.64,0.06776928]
[1744180828229,0.07173501,105.66,105.64,9.53986928]
[1744180829735,9.54263501,105.66,105.64,0.06776928]
[1744180829935,0.07173501,105.66,105.64,0.06776928]
[1744180830137,40.15173501,105.66,105.64,0.06776928]
[1744180830337,48.85153501,105.66,105.64,0.06776928]
[1744180830634,9.4716,105.65,105.64,0.06776928]
[1744180831637,9.4738,105.63,105.58,40.08]
[1744180831834,4.4417,105.64,105.58,40.08]
[1744180832033,4.4417,105.64,105.58,49.5574]
[1744180832335,9.4747,105.62,105.58,49.5574]
[1744180832836,0.06971795,105.61,105.59,9.54764703]
[1744180833834,9.54511795,105.61,105.59,0.07064703]
[1744180834036,0.06971795,105.61,105.59,0.07064703]
[1744180834841,9.4761,105.6,105.59,0.07064703]
[1744180836643,0.06971795,105.61,105.59,0.07064703]
[1744180836845,0.06971795,105.61,105.59,9.54724703]
[1744180837142,0.06971795,105.61,105.59,0.07064703]
[1744180838144,9.4761,105.6,105.59,0.07064703]
[1744180838634,0.06971795,105.61,105.59,0.07064703]
[1744180839245,9.54531795,105.61,105.59,0.07064703]
[1744180841848,0.06971795,105.61,105.59,0.07064703]
[1744180842642,9.54531795,105.61,105.59,0.07064703]
[1744180842843,0.06971795,105.61,105.59,0.07064703]
[1744180843851,0.06971795,105.61,105.6,9.4761]
[1744180848751,40.08,105.65,105.59,0.07064703]
[1744180849149,9.473,105.64,105.59,0.07064703]
[1744180849351,9.473,105.64,105.6,9.4754]
[1744180849555,9.473,105.64,105.59,0.07064703]
[1744180849852,0.06446191,105.63,105.59,0.07064703]
[1744180850157,0.06446191,105.63,105.61,9.4752]
[1744180850657,0.06446191,105.63,105.6,9.4756]
[1744180850956,0.06446191,105.63,105.59,0.07064703]
[1744180851746,0.06446191,105.63,105.6,9.4753]
[1744180852057,0.06446191,105.63,105.59,0.07064703]
[1744180852956,0.06446191,105.63,105.61,9.4749]
[1744180853660,0.06446191,105.63,105.6,9.4756]
[1744180854862,9.53786191,105.63,105.59,9.54724703]
[1744180855058,0.06446191,105.63,105.59,9.54724703]
[1744180855662,0.06446191,105.63,105.59,0.07064703]
[1744180856362,0.06446191,105.63,105.6,9.4759]
[1744180858860,0.06446191,105.63,105.61,9.4751]
[1744180859561,0.06446191,105.63,105.6,9.4756]
[1744180861262,9.53796191,105.63,105.6,9.4756]
[1744180861561,0.06446191,105.63,105.6,9.4756]
[1744180862463,0.06446191,105.63,105.61,9.4752]
[1744180862857,0.06446191,105.63,105.6,9.4757]
[1744180863059,0.06446191,105.63,105.59,0.07064703]
[1744180863267,23.64862751,105.63,105.59,0.07064703]
[1744180863454,4.26206191,105.63,105.59,0.07064703]
[1744180863656,0.06446191,105.63,105.59,0.07064703]
[1744180863954,0.06446191,105.63,105.62,9.4743]
[1744180865163,0.06446191,105.63,105.61,9.53645453]
[1744180865565,0.06446191,105.63,105.61,0.06175453]
[1744180865767,0.06446191,105.63,105.62,9.4743]
[1744180866267,0.06446191,105.63,105.61,0.06175453]
[1744180866767,9.53826191,105.63,105.61,0.06175453]
[1744180867760,9.4743,105.62,105.61,0.06175453]
[1744180870365,13.69076191,105.63,105.61,0.06175453]
[1744180872171,9.4743,105.62,105.61,0.06175453]
[1744180873773,9.477,105.59,105.56,9.4792]
[1744180873963,9.477,105.59,105.55,40.04]
[1744180874273,9.477,105.59,105.55,49.5199]
[1744180874470,9.4779,105.58,105.55,49.5199]
[1744180874670,9.4779,105.58,105.55,40.04]
[1744180875068,9.55075627,105.58,105.55,40.10482126]
[1744180875275,9.4789,105.57,105.55,40.10482126]
[1744180875872,0.07285627,105.58,105.55,40.10482126]
[1744180875873,9.55115627,105.58,105.55,40.10482126]
[1744180876468,40.11285627,105.58,105.55,0.06482126]
[1744180876676,59.49942187,105.58,105.55,0.06482126]
[1744180876875,8.5819,105.57,105.49,8.7485]
[1744180877772,4.208,105.57,105.5,19.3865656]
[1744180877977,0.06475885,105.54,105.52,0.06095315]
[1744180878173,0.06475885,105.54,105.51,40.04]
[1744180878476,9.4784,105.58,105.54,9.4808]
[1744180878976,0.06502623,105.57,105.55,0.06498358]
[1744180880177,0.06502623,105.57,105.56,9.4797]
[1744180880572,13.10572806,105.63,105.56,19.3865656]
[1744180880767,13.10572806,105.63,105.57,40.04]
[1744180881266,9.4748,105.62,105.58,9.4775]
[1744180881475,32.49229366,105.63,105.57,40.04]
[1744180881776,0.07180946,105.61,105.59,0.06218801]
[1744180882890,0.07180946,105.61,105.6,9.4761]
[1744180884177,0.07180946,105.61,105.59,9.53868801]
[1744180884382,0.07180946,105.61,105.59,0.06218801]
[1744180884987,0.07180946,105.61,105.59,9.53838801]
[1744180886487,0.07180946,105.61,105.59,0.06218801]
[1744180888779,9.54710946,105.61,105.59,0.06218801]
[1744180888985,0.07180946,105.61,105.59,0.06218801]
[1744180890491,9.4761,105.6,105.59,0.06218801]
[1744180891091,40.05180946,105.61,105.52,19.3865656]
[1744180891390,9.4793,105.57,105.53,39.98]
[1744180891590,23.5074656,105.6,105.53,39.98]
[1744180891885,4.1209,105.6,105.54,19.3865656]
[1744180892286,0.06454641,105.58,105.56,9.54387153]
[1744180892590,0.06454641,105.58,105.56,40.04457153]
[1744180892793,0.06454641,105.58,105.57,9.4788]
[1744180894101,63.4874656,105.64,105.6,9.4757]
[1744180894387,9.4735,105.63,105.56,59.3665656]
[1744180894899,9.4735,105.63,105.59,9.4763]
[1744180895095,53.5736,105.64,105.56,59.3665656]
[1744180895290,0.0650076,105.62,105.6,0.07145348]
[1744180896701,9.4752,105.61,105.6,0.07145348]
[1744180897094,0.0650076,105.62,105.6,0.07145348]
[1744180897298,9.5399076,105.62,105.6,0.07145348]
[1744180897905,9.4752,105.61,105.6,0.07145348]
[1744180898293,0.0650076,105.62,105.6,0.07145348]
[1744180898494,9.5398076,105.62,105.6,0.07145348]
[1744180900800,0.0650076,105.62,105.6,0.07145348]
[1744180901906,0.0650076,105.62,105.6,9.54735348]
[1744180904301,0.0650076,105.62,105.61,9.4752]
[1744180905404,0.0650076,105.62,105.6,14.00135348]
[1744180905599,0.0650076,105.62,105.6,9.54705348]
[1744180905800,0.0650076,105.62,105.61,9.4752]
[1744180908307,120.70486744,105.68,105.6,8.72075348]
[1744180908508,120.70486744,105.68,105.6,8.6493]
[1744180908807,68.1198656,105.68,105.6,8.6493]
[1744180909108,9.4704,105.67,105.63,9.4727]
[1744180909410,0.0655797,105.67,105.64,0.0623904]
[1744180910411,9.5358797,105.67,105.64,0.0623904]
[1744180910908,9.5358797,105.67,105.64,9.5348904]
[1744180911108,9.5358797,105.67,105.64,0.0623904]
[1744180911405,19.3865656,105.66,105.64,0.0623904]
[1744180911597,4.0843,105.65,105.6,9.4756]
[1744180912409,9.473,105.64,105.6,9.4756]
[1744180912601,9.53922612,105.64,105.61,0.07094713]
[1744180912904,9.4741,105.63,105.61,0.07094713]
[1744180913207,0.06622612,105.64,105.61,0.07094713]
[1744180913610,9.53912612,105.64,105.61,0.07094713]
[1744180914511,9.4743,105.62,105.61,0.07094713]
[1744180915702,9.4757,105.61,105.56,39.92]
[1744180915908,9.4757,105.61,105.57,9.4784]
[1744180916111,9.4772,105.59,105.56,39.92]
[1744180916299,59.3065656,105.62,105.56,39.92]
[1744180916498,4.4884,105.61,105.56,49.3996]
[1744180916810,9.53790195,105.6,105.57,0.07206145]
[1744180917206,0.06120195,105.6,105.57,0.07206145]
[1744180917707,0.06120195,105.6,105.57,19.45862705]
[1744180919113,39.92,105.65,105.57,19.45862705]
[1744180919314,39.92,105.65,105.58,8.4517]
[1744180919516,39.92,105.65,105.59,39.92]
[1744180919813,39.92,105.65,105.62,9.4738]
[1744180920212,39.92,105.65,105.63,9.4734]
[1744180920412,0.05981208,105.65,105.62,0.06167489]
[1744180920808,0.05981208,105.65,105.62,39.98167489]
[1744180921008,0.05981208,105.65,105.64,9.4725]
[1744180921715,157.75500553,105.69,105.67,9.4697]
[1744180922112,157.75500553,105.69,105.66,9.4703]
[1744180922612,13.14625046,105.69,105.66,9.4703]
[1744180922817,0.06541023,105.69,105.66,9.53342484]
[1744180923519,9.53351023,105.69,105.66,0.06312484]
[1744180923716,0.06541023,105.69,105.66,0.06312484]
[1744180924318,0.06541023,105.69,105.66,19.44969044]
[1744180924610,0.06541023,105.69,105.68,9.4689]
[1744180926815,0.06541023,105.69,105.66,9.53342484]
[1744180927019,0.06541023,105.69,105.66,0.06312484]
[1744180927417,18.31941023,105.69,105.66,0.06312484]
[1744180927822,8.85111023,105.69,105.66,0.06312484]
[1744180928213,48.77111023,105.69,105.66,0.06312484]
[1744180929022,9.4698,105.67,105.66,0.06312484]
[1744180930223,19.3865656,105.68,105.62,39.92]
[1744180930423,4.249,105.67,105.62,39.92]
[1744180930725,4.249,105.67,105.63,9.4727]
[1744180931119,48.7057,105.69,105.62,39.92]
[1744180931319,0.06742764,105.66,105.64,0.06909028]
[1744180931818,0.06742764,105.66,105.65,9.4707]
[1744180932018,0.06742764,105.66,105.64,0.06909028]
[1744180932624,0.06742764,105.66,105.64,9.54079028]
[1744180934326,0.06742764,105.66,105.65,9.4716]
[1744180936628,2.764e-05,105.66,105.65,49.3716]
[1744180942638,2.764e-05,105.66,105.65,39.9]